fUSD/lending_fUSD_20260115
["ID","MTS","AMOUNT","RATE_DAILY","PERIOD"]
[402011888,1768457454176,-699.12,0.00041369,30]
[402011889,1768457454186,-500.0,0.00041369,30]
[402011890,1768457454195,-500.0,0.00041369,30]
[402011891,1768457454204,-500.0,0.00041369,30]
[402011892,1768457454214,-500.0,0.00041369,30]
[402011893,1768457454224,-1624.09,0.00041369,30]
[402011894,1768457454233,-1127.48,0.00041369,30]
[402011895,1768457454243,-638.02,0.00041369,30]
[402011896,1768457454252,-1294.69,0.00041369,30]
[402011897,1768457454261,-500.0,0.00041369,30]
[402011898,1768457454270,-500.0,0.00041369,30]
[402011899,1768457454279,-500.0,0.00041369,30]
[402011900,1768457454290,-500.0,0.00041369,30]
[402011901,1768457454299,-509.26939582,0.00041369,30]
[402011902,1768457454308,-500.0,0.00041369,30]
[402011903,1768457454318,-1709.04,0.00041369,30]
[402011904,1768457454327,-500.0,0.00041369,30]
[402011905,1768457454336,-745.59,0.00041369,30]
[402011906,1768457454346,-648.47,0.00041369,30]
[402011907,1768457454355,-500.0,0.00041369,30]
[402011908,1768457454364,-881.72,0.00041369,30]
[402011909,1768457454373,-1743.2,0.00041369,30]
[402011910,1768457454382,-500.0,0.00041369,30]
[402011911,1768457454391,-500.0,0.00041369,30]
[402011912,1768457454400,-500.0,0.00041369,30]
[402011913,1768457454409,-500.0,0.00041369,30]
[402011914,1768457454418,-500.0,0.00041369,30]
[402011915,1768457454427,-500.0,0.00041369,30]
[402011916,1768457454436,-1106.16,0.00041369,30]
[402011917,1768457454450,-505.30185593,0.00041369,30]
[402011918,1768457454459,-1531.28,0.00041369,30]
[402011919,1768457454468,-500.0,0.00041369,30]
[402011920,1768457454478,-637.09,0.00041369,30]
[402011921,1768457454489,-500.0,0.00041369,30]
[402011922,1768457454498,-542.37,0.00041369,30]
[402011923,1768457454507,-500.0,0.00041369,30]
[402011924,1768457454518,-500.0,0.00041369,30]
[402011925,1768457454527,-922.92,0.00041369,30]
[402011926,1768457454536,-500.0,0.00041369,30]
[402011927,1768457454546,-539.51,0.00041369,30]
[402011928,1768457454555,-1439.05,0.00041369,30]
[402011929,1768457454564,-500.0,0.00041369,30]
[402011930,1768457454573,-500.0,0.00041369,30]
[402011931,1768457454582,-191.64654643,0.00041369,30]
[402011932,1768457454592,-657.42,0.00041369,30]
[402011933,1768457454601,-569.08,0.00041369,30]
[402011934,1768457454611,-1636.62,0.00041369,30]
[402011935,1768457454621,-502.99,0.00041369,30]
[402011936,1768457454630,-905.48,0.00041369,30]
[402011937,1768457454640,-500.0,0.00041369,30]
[402011938,1768457454649,-783.43,0.00041369,30]
[402011939,1768457454658,-500.0,0.00041369,30]
[402011940,1768457454667,-500.0,0.00041369,30]
[402011941,1768457454677,-1000.0,0.00041369,30]
[402011942,1768457454686,-500.0,0.00041369,30]
[402011943,1768457454695,-500.0,0.00041369,30]
[402011944,1768457454705,-500.0,0.00041369,30]
[402011945,1768457454715,-722.32,0.00041369,30]
[402011946,1768457454724,-500.0,0.00041369,30]
[402011947,1768457454733,-500.0,0.00041369,30]
[402011948,1768457454742,-1308.45,0.00041369,30]
[402011949,1768457454751,-1084.94,0.00041369,30]
[402011950,1768457454761,-1026.1,0.00041369,30]
[402011951,1768457454770,-500.0,0.00041369,30]
[402011952,1768457454780,-1466.71,0.00041369,30]
[402011953,1768457454789,-500.0,0.00041369,30]
[402011954,1768457454799,-500.0,0.00041369,30]
[402011955,1768457454808,-931.54,0.00041369,30]
[402011956,1768457454817,-500.0,0.00041369,30]
[402011957,1768457454827,-500.0,0.00041369,30]
[402011958,1768457454836,-500.0,0.00041369,30]
[402011959,1768457454845,-500.0,0.00041369,30]
[402011960,1768457454854,-500.0,0.00041369,30]
[402011961,1768457454864,-1119.98,0.00041369,30]
[402011962,1768457454873,-500.0,0.00041369,30]
[402011963,1768457454882,-825.77,0.00041369,30]
[402011964,1768457454891,-500.0,0.00041369,30]
[402011965,1768457454900,-1319.17,0.00041369,30]
[402011966,1768457454910,-500.0,0.00041369,30]
[402011967,1768457454919,-500.0,0.00041369,30]
[402011968,1768457454928,-543.44,0.00041369,30]
[402011969,1768457454938,-742.69,0.00041369,30]
[402011970,1768457454947,-500.0,0.00041369,30]
[402011971,1768457454957,-1075.79,0.00041369,30]
[402011972,1768457454967,-500.0,0.00041369,30]
[402011973,1768457454976,-744.89,0.00041369,30]
[402011974,1768457454985,-1207.72,0.00041369,30]
[402011975,1768457454994,-500.0,0.00041369,30]
[402011976,1768457455003,-543.97,0.00041369,30]
[402011977,1768457455012,-574.43,0.00041369,30]
[402011978,1768457455022,-500.0,0.00041369,30]
[402011979,1768457455031,-517.17,0.00041369,30]
[402011980,1768457455040,-500.0,0.00041369,30]
[402011981,1768457455050,-500.0,0.00041369,30]
[402011982,1768457455059,-500.0,0.00041369,30]
[402011983,1768457455069,-500.0,0.00041369,30]
[402011984,1768457455078,-576.51,0.00041369,30]
[402011985,1768457455087,-523.38738483,0.00041369,30]
[402011986,1768457455096,-1097.87,0.00041369,30]
[402011987,1768457455105,-1226.97,0.00041369,30]
[402011988,1768457455114,-500.0,0.00041369,30]
[402011989,1768457455124,-700.68,0.00041369,30]
[402011990,1768457455133,-500.0,0.00041369,30]
[402011991,1768457455142,-704.19,0.00041369,30]
[402011992,1768457455151,-500.0,0.00041369,30]
[402011993,1768457455160,-500.0,0.00041369,30]
[402011994,1768457455170,-500.0,0.00041369,30]
[402011995,1768457455179,-576.79,0.00041369,30]
[402011996,1768457455188,-500.0,0.00041369,30]
[402011997,1768457455197,-500.0,0.00041369,30]
[402011998,1768457455206,-500.0,0.00041369,30]
[402011999,1768457455216,-500.0,0.00041369,30]
[402012000,1768457455225,-552.37217769,0.00041369,30]
[402012001,1768457455234,-237.617073,0.00041369,30]
[402012002,1768457455243,-281.379602,0.00041369,30]
[402012003,1768457455252,-500.0,0.00041369,30]
[402012004,1768457455262,-640.07,0.00041369,30]
[402012005,1768457455271,-730.39,0.00041369,30]
[402012006,1768457455281,-500.0,0.00041369,30]
[402012007,1768457455290,-725.61,0.00041369,30]
[402012008,1768457455299,-500.0,0.00041369,30]
[402012009,1768457455308,-500.0,0.00041369,14]
[402012010,1768457455317,-500.0,0.00041369,30]
[402012011,1768457455326,-500.0,0.00041369,30]
[402012012,1768457455335,-1152.85,0.00041369,30]
[402012013,1768457455344,-753.16,0.00041369,30]
[402012014,1768457455354,-1050.4,0.00041369,30]
[402012015,1768457455363,-500.0,0.00041369,30]
[402012016,1768457455372,-633.08,0.00041369,30]
[402012017,1768457455382,-500.0,0.00041369,30]
[402012018,1768457455391,-1625.84,0.00041369,30]
[402012019,1768457455401,-500.0,0.00041369,30]
[402012020,1768457455410,-1507.14,0.00041369,30]
[402012021,1768457455419,-1064.77,0.00041369,30]
[402012022,1768457455428,-500.0,0.00041369,30]
[402012023,1768457455438,-500.0,0.00041369,30]
[402012024,1768457455449,-1074.82,0.00041369,30]
[402012025,1768457455459,-758.89,0.00041369,30]
[402012026,1768457455652,-500.0,0.00041369,30]
[402012027,1768457455677,-500.0,0.00041369,30]
[402012028,1768457455687,-1456.69,0.00041369,30]
[402012029,1768457455697,-1014.8,0.00041369,30]
[402012030,1768457455707,-625.93,0.00041369,30]
[402012031,1768457455717,-500.0,0.00041369,30]
[402012032,1768457455727,-623.16,0.00041369,30]
[402012033,1768457455736,-500.0,0.00041369,30]
[402012034,1768457455746,-523.15,0.00041369,30]
[402012035,1768457455755,-519.62479307,0.00041369,30]
[402012036,1768457455765,-500.0,0.00041369,30]
[402012037,1768457455775,-1093.9,0.00041369,30]
[402012038,1768457455784,-700.27,0.00041369,30]
[402012039,1768457455794,-1131.87,0.00041369,30]
[402012040,1768457455803,-500.0,0.00041369,30]
[402012041,1768457455813,-1256.56,0.00041369,30]
[402012042,1768457455822,-500.0,0.00041369,30]
[402012043,1768457455832,-500.0,0.00041369,30]
[402012044,1768457455841,-500.0,0.00041369,30]
[402012045,1768457455851,-500.0,0.00041369,30]
[402012046,1768457455861,-500.0,0.00041369,30]
[402012047,1768457455870,-1619.29,0.00041369,30]
[402012048,1768457455880,-300.20292039,0.00041369,30]
[402012049,1768457455889,-1177.88,0.00041369,30]
[402012050,1768457455899,-577.5,0.00041369,30]
[402012051,1768457455908,-500.0,0.00041369,30]
[402012052,1768457455918,-2469.66,0.00041369,30]
[402012053,1768457455927,-696.27,0.00041369,30]
[402012054,1768457455937,-1065.52,0.00041369,30]
[402012055,1768457455947,-1113.96,0.00041369,30]
[402012056,1768457455956,-500.0,0.00041369,30]
[402012057,1768457455966,-500.0,0.00041369,30]
[402012058,1768457455976,-150.978527,0.00041369,30]
[402012059,1768457455985,-500.0,0.00041369,30]
[402012060,1768457455995,-1532.77,0.00041369,30]
[402012061,1768457456005,-656.74,0.00041369,30]
[402012062,1768457456014,-500.0,0.00041369,30]
[402012063,1768457456024,-500.0,0.00041369,30]
[402012064,1768457456033,-500.0,0.00041369,30]
[402012065,1768457456043,-1909.11,0.00041369,30]
[402012066,1768457456052,-1649.65,0.00041369,30]
[402012067,1768457456061,-1094.73,0.00041369,30]
[402012068,1768457456071,-500.0,0.00041369,30]
[402012069,1768457456080,-500.0,0.00041369,30]
[402012070,1768457456090,-500.0,0.00041369,30]
[402012071,1768457456099,-500.0,0.00041369,30]
[402012072,1768457456109,-500.0,0.00041369,30]
[402012073,1768457456118,-836.24,0.00041369,30]
[402012074,1768457456127,-1286.49,0.00041369,30]
[402012075,1768457456136,-507.25528651,0.00041369,30]
[402012076,1768457456145,-1255.25,0.00041369,30]
[402012077,1768457456155,-689.07,0.00041369,30]
[402012078,1768457456165,-856.16,0.00041369,30]
[402012079,1768457456174,-928.74,0.00041369,30]
[402012080,1768457456183,-954.82,0.00041369,30]
[402012081,1768457456193,-500.0,0.00041369,30]
[402012082,1768457456202,-854.21,0.00041369,30]
[402012083,1768457456212,-500.0,0.00041369,30]
[402012084,1768457456222,-500.0,0.00041369,30]
[402012085,1768457456231,-641.44,0.00041369,30]
[402012086,1768457456241,-500.0,0.00041369,30]
[402012087,1768457456250,-500.0,0.00041369,30]
[402012088,1768457456260,-1035.01,0.00041369,30]
[402012089,1768457456270,-500.0,0.00041369,30]
[402012090,1768457456279,-500.0,0.00041369,30]
[402012091,1768457456289,-576.57359849,0.00041369,30]
[402012092,1768457456299,-1549.97,0.00041369,30]
[402012093,1768457456308,-2042.01,0.00041369,30]
[402012094,1768457456318,-500.0,0.00041369,30]
[402012095,1768457456327,-587.9111554,0.00041369,30]
[402012096,1768457456336,-500.0,0.00041369,30]
[402012097,1768457456346,-500.0,0.00041369,30]
[402012098,1768457456355,-997.92,0.00041369,30]
[402012099,1768457456365,-697.4,0.00041369,30]
[402012100,1768457456374,-500.0,0.00041369,30]
[402012101,1768457456384,-500.0,0.00041369,30]
[402012102,1768457456393,-500.0,0.00041369,30]
[402012103,1768457456402,-500.0,0.00041369,30]
[402012104,1768457456412,-300.0,0.00041369,2]
[402012105,1768457456422,-500.0,0.00041369,30]
[402012106,1768457456431,-305.5921265,0.00041369,30]
[402012107,1768457456443,-671.07,0.00041369,30]
[402012108,1768457456453,-500.0,0.00041369,30]
[402012109,1768457456463,-745.16,0.00041369,30]
[402012110,1768457456472,-500.0,0.00041369,30]
[402012111,1768457456483,-1195.19,0.00041369,30]
[402012112,1768457456493,-1288.81,0.00041369,30]
[402012113,1768457456502,-516.61,0.00041369,30]
[402012114,1768457456512,-679.62,0.00041369,30]
[402012115,1768457456523,-500.0,0.00041369,30]
[402012116,1768457456532,-1568.66,0.00041369,30]
[402012117,1768457456542,-556.66,0.00041369,30]
[402012118,1768457456552,-1135.41,0.00041369,30]
[402012119,1768457456561,-544.3,0.00041369,30]
[402012120,1768457456572,-1444.3,0.00041369,30]
[402012121,1768457456581,-500.0,0.00041369,30]
[402012122,1768457456591,-500.0,0.00041369,30]
[402012123,1768457456600,-500.0,0.00041369,30]
[402012124,1768457456610,-500.0,0.00041369,30]
[402012125,1768457456619,-750.18,0.00041369,30]
[402012126,1768457456629,-500.0,0.00041369,30]
[402012127,1768457456638,-500.0,0.00041369,30]
[402012128,1768457456648,-500.0,0.00041369,30]
[402012129,1768457456658,-500.0,0.00041369,30]
[402012130,1768457456667,-760.26,0.00041369,30]
[402012131,1768457456677,-231.17683777,0.00041369,30]
[402012132,1768457456687,-500.0,0.00041369,30]
[402012133,1768457456696,-500.0,0.00041369,30]
[402012134,1768457456706,-500.0,0.00041369,30]
[402012135,1768457456716,-500.0,0.00041369,30]
[402012136,1768457456726,-1319.37,0.00041369,30]
[402012137,1768457456736,-621.65,0.00041369,30]
[402012138,1768457456746,-673.22,0.00041369,30]
[402012139,1768457456755,-500.0,0.00041369,30]
[402012140,1768457456764,-1102.95,0.00041369,30]
[402012141,1768457456775,-500.0,0.00041369,30]
[402012142,1768457456785,-500.0,0.00041369,30]
[402012143,1768457456794,-500.0,0.00041369,30]
[402012144,1768457456804,-500.0,0.00041369,30]
[402012145,1768457456813,-1081.74,0.00041369,30]
[402012146,1768457456823,-500.0,0.00041369,30]
[402012147,1768457456833,-500.0,0.00041369,30]
[402012148,1768457456842,-793.57,0.00041369,30]
[402012149,1768457456862,-500.0,0.00041369,30]
[402012150,1768457456874,-1563.9,0.00041369,30]
[402012151,1768457456884,-500.0,0.00041369,30]
[402012152,1768457456894,-662.47,0.00041369,30]
[402012153,1768457456904,-500.0,0.00041369,30]
[402012154,1768457456914,-1409.31,0.00041369,30]
[402012155,1768457456924,-500.0,0.00041369,30]
[402012156,1768457456934,-1608.8,0.00041369,30]
[402012157,1768457456945,-500.0,0.00041369,30]
[402012158,1768457456954,-500.0,0.00041369,30]
[402012159,1768457456964,-500.0,0.00041369,30]
[402012160,1768457456975,-607.43,0.00041369,30]
[402012161,1768457456984,-941.55,0.00041369,30]
[402012162,1768457456994,-500.0,0.00041369,30]
[402012163,1768457457004,-500.0,0.00041369,30]
[402012164,1768457457014,-500.0,0.00041369,30]
[402012165,1768457457023,-500.0,0.00041369,30]
[402012166,1768457457033,-946.59,0.00041369,30]
[402012167,1768457457043,-359.74349105,0.00041369,30]
[402012168,1768457457053,-500.0,0.00041369,30]
[402012169,1768457457062,-500.0,0.00041369,30]
[402012170,1768457457072,-526.09,0.00041369,30]
[402012171,1768457457082,-500.56,0.00041369,30]
[402012172,1768457457092,-500.0,0.00041369,30]
[402012173,1768457457102,-681.52,0.00041369,30]
[402012174,1768457457111,-500.0,0.00041369,30]
[402012175,1768457457120,-799.57,0.00041369,30]
[402012176,1768457457130,-500.0,0.00041369,30]
[402012177,1768457457140,-1219.46,0.00041369,30]
[402012178,1768457457149,-604.27,0.00041369,30]
[402012179,1768457457159,-500.0,0.00041369,30]
[402012180,1768457457168,-769.82,0.00041369,30]
[402012181,1768457457179,-951.73,0.00041369,30]
[402012182,1768457457188,-500.0,0.00041369,30]
[402012183,1768457457197,-1179.02,0.00041369,30]
[402012184,1768457457212,-839.49,0.00041369,30]
[402012185,1768457457221,-633.19,0.00041369,30]
[402012186,1768457457231,-500.0,0.00041369,30]
[402012187,1768457457240,-500.0,0.00041369,30]
[402012188,1768457457250,-500.0,0.00041369,30]
[402012189,1768457457260,-2247.46,0.00041369,30]
[402012190,1768457457270,-500.0,0.00041369,30]
[402012191,1768457457281,-500.0,0.00041369,30]
[402012192,1768457457291,-500.0,0.00041369,30]
[402012193,1768457457301,-500.0,0.00041369,30]
[402012194,1768457457310,-500.0,0.00041369,30]
[402012195,1768457457320,-1156.41,0.00041369,30]
[402012196,1768457457329,-500.0,0.00041369,30]
[402012197,1768457457339,-500.0,0.00041369,30]
[402012198,1768457457349,-605.2,0.00041369,30]
[402012199,1768457457359,-859.7,0.00041369,30]
[402012200,1768457457368,-626.97,0.00041369,30]
[402012201,1768457457378,-500.0,0.00041369,30]
[402012202,1768457457388,-588.74,0.00041369,30]
[402012203,1768457457397,-500.0,0.00041369,30]
[402012204,1768457457407,-1177.25,0.00041369,30]
[402012205,1768457457417,-300.0,0.00041369,2]
[402012206,1768457457427,-500.0,0.00041369,30]
[402012207,1768457457437,-2464.01,0.00041369,30]
[402012208,1768457457452,-502.48,0.00041369,30]
[402012209,1768457457462,-500.0,0.00041369,30]
[402012210,1768457457472,-500.0,0.00041369,30]
[402012211,1768457457483,-500.0,0.00041369,30]
[402012212,1768457457492,-500.0,0.00041369,30]
[402012213,1768457457502,-538.91,0.00041369,30]
[402012214,1768457457512,-500.0,0.00041369,16]
[402012215,1768457457522,-1591.4,0.00041369,30]
[402012216,1768457457532,-500.0,0.00041369,30]
[402012217,1768457457542,-578.12,0.00041369,30]
[402012218,1768457457551,-1475.67,0.00041369,30]
[402012219,1768457457561,-911.51,0.00041369,30]
[402012220,1768457457570,-369.68525408,0.00041369,30]
[402012221,1768457457585,-733.23,0.00041369,30]
[402012222,1768457457595,-1360.43,0.00041369,30]
[402012223,1768457457605,-509.32,0.00041369,30]
[402012224,1768457457618,-708.8,0.00041369,30]
[402012225,1768457457628,-500.0,0.00041369,30]
[402012226,1768457457638,-500.0,0.00041369,30]
[402012227,1768457457649,-500.0,0.00041369,30]
[402012228,1768457457659,-500.0,0.00041369,30]
[402012229,1768457457669,-500.0,0.00041369,30]
[402012230,1768457457679,-1202.12,0.00041369,30]
[402012231,1768457457690,-500.0,0.00041369,30]
[402012232,1768457457700,-500.0,0.00041369,30]
[402012233,1768457457710,-1353.02,0.00041369,30]
[402012234,1768457457721,-636.14,0.00041369,30]
[402012235,1768457457731,-1767.9,0.00041369,30]
[402012236,1768457457740,-1061.8,0.00041369,30]
[402012237,1768457457750,-500.0,0.00041369,30]
[402012238,1768457457760,-939.02,0.00041369,30]
[402012239,1768457457771,-610.32,0.00041369,30]
[402012240,1768457457781,-660.88,0.00041369,30]
[402012241,1768457457791,-500.0,0.00041369,30]
[402012242,1768457457801,-500.0,0.00041369,30]
[402012243,1768457457812,-500.0,0.00041369,30]
[402012244,1768457457822,-1140.08,0.00041369,30]
[402012245,1768457457831,-500.0,0.00041369,30]
[402012246,1768457457841,-500.0,0.00041369,30]
[402012247,1768457457851,-548.45,0.00041369,30]
[402012248,1768457457860,-500.0,0.00041369,30]
[402012249,1768457457871,-901.6,0.00041369,30]
[402012250,1768457457880,-500.0,0.00041369,30]
[402012251,1768457457890,-500.0,0.00041369,30]
[402012252,1768457457900,-500.0,0.00041369,30]
[402012253,1768457457909,-1700.28,0.00041369,30]
[402012254,1768457457919,-500.0,0.00041369,30]
[402012255,1768457457928,-725.19,0.00041369,30]
[402012256,1768457457943,-590.93,0.00041369,30]
[402012257,1768457457952,-862.64,0.00041369,30]
[402012258,1768457457962,-500.0,0.00041369,30]
[402012259,1768457457972,-500.0,0.00041369,30]
[402012260,1768457457982,-505.85,0.00041369,30]
[402012261,1768457457992,-500.0,0.00041369,30]
[402012262,1768457458001,-500.0,0.00041369,30]
[402012263,1768457458011,-500.0,0.00041369,30]
[402012264,1768457458031,-1534.14,0.00041369,30]
[402012265,1768457458041,-500.0,0.00041369,30]
[402012266,1768457458051,-500.0,0.00041369,30]
[402012267,1768457458062,-500.0,0.00041369,30]
[402012268,1768457458072,-934.36,0.00041369,30]
[402012269,1768457458081,-520.02,0.00041369,30]
[402012270,1768457458091,-1912.65,0.00041369,30]
[402012271,1768457458101,-500.0,0.00041369,30]
[402012272,1768457458111,-1270.25,0.00041369,30]
[402012273,1768457458121,-500.0,0.00041369,30]
[402012274,1768457458131,-500.0,0.00041369,30]
[402012275,1768457458140,-954.91,0.00041369,2]
[402012276,1768457458150,-500.0,0.00041369,30]
[402012277,1768457458308,-500.0,0.00041369,30]
[402012278,1768457458317,-1932.52,0.00041369,30]
[402012279,1768457458326,-500.0,0.00041369,30]
[402012280,1768457458335,-500.0,0.00041369,30]
[402012281,1768457458344,-529.6,0.00041369,30]
[402012282,1768457458353,-500.0,0.00041369,30]
[402012283,1768457458362,-2502.91,0.00041369,30]
[402012284,1768457458372,-500.0,0.00041369,30]
[402012285,1768457458381,-1172.39,0.00041369,30]
[402012286,1768457458390,-500.0,0.00041369,30]
[402012287,1768457458399,-816.46,0.00041369,30]
[402012288,1768457458409,-596.5,0.00041369,30]
[402012289,1768457458418,-500.0,0.00041369,30]
[402012290,1768457458427,-819.93,0.00041369,30]
[402012291,1768457458436,-500.0,0.00041369,30]
[402012292,1768457458449,-608.54,0.00041369,30]
[402012293,1768457458458,-500.0,0.00041369,30]
[402012294,1768457458470,-500.0,0.00041369,30]
[402012295,1768457458479,-500.0,0.00041369,30]
[402012296,1768457458490,-500.0,0.00041369,30]
[402012297,1768457458499,-549.02,0.00041369,30]
[402012298,1768457458508,-500.0,0.00041369,30]
[402012299,1768457458518,-525.82,0.00041369,30]
[402012300,1768457458528,-500.0,0.00041369,30]
[402012301,1768457458537,-798.1,0.00041369,30]
[402012302,1768457458546,-956.28,0.00041369,30]
[402012303,1768457458555,-525.04688998,0.00041369,30]
[402012304,1768457458564,-603.14,0.00041369,30]
[402012305,1768457458574,-500.0,0.00041369,30]
[402012306,1768457458583,-500.0,0.00041369,30]
[402012307,1768457458592,-500.0,0.00041369,30]
[402012308,1768457458601,-521.56,0.00041369,30]
[402012309,1768457458611,-500.0,0.00041369,30]
[402012310,1768457458620,-839.13,0.00041369,30]
[402012311,1768457458630,-500.0,0.00041369,30]
[402012312,1768457458639,-613.7,0.00041369,30]
[402012313,1768457458648,-500.0,0.00041369,30]
[402012314,1768457458657,-559.97196882,0.00041369,30]
[402012315,1768457458669,-500.0,0.00041369,30]
[402012316,1768457458678,-1326.59,0.00041369,30]
[402012317,1768457458687,-536.66,0.00041369,30]
[402012318,1768457458697,-500.0,0.00041369,30]
[402012319,1768457458706,-500.0,0.00041369,30]
[402012320,1768457458715,-2038.63,0.00041369,30]
[402012321,1768457458724,-1089.28,0.00041369,30]
[402012322,1768457458733,-1881.89,0.00041369,30]
[402012323,1768457458743,-500.0,0.00041369,30]
[402012324,1768457458752,-896.38,0.00041369,30]
[402012325,1768457458761,-1155.3,0.00041369,30]
[402012326,1768457458771,-500.0,0.00041369,30]
[402012327,1768457458780,-663.46,0.00041369,30]
[402012328,1768457458789,-723.82,0.00041369,30]
[402012329,1768457458799,-1033.31,0.00041369,30]
[402012330,1768457458808,-500.0,0.00041369,30]
[402012331,1768457458817,-500.0,0.00041369,30]
[402012332,1768457458826,-500.0,0.00041369,30]
[402012333,1768457458836,-500.0,0.00041369,30]
[402012334,1768457458845,-500.0,0.00041369,30]
[402012335,1768457458854,-500.0,0.00041369,30]
[402012336,1768457458863,-500.0,0.00041369,30]
[402012337,1768457458873,-1391.17,0.00041369,30]
[402012338,1768457458882,-2353.86,0.00041369,30]
[402012339,1768457458891,-500.0,0.00041369,30]
[402012340,1768457458900,-1566.62,0.00041369,30]
[402012341,1768457458910,-2417.67,0.00041369,30]
[402012342,1768457458919,-937.37,0.00041369,30]
[402012343,1768457458928,-500.0,0.00041369,30]
[402012344,1768457458936,-500.0,0.00041369,30]
[402012345,1768457458945,-708.73,0.00041369,30]
[402012346,1768457458955,-957.4,0.00041369,30]
[402012347,1768457458964,-500.0,0.00041369,30]
[402012348,1768457458973,-500.0,0.00041369,30]
[402012349,1768457458982,-1411.27,0.00041369,30]
[402012350,1768457458992,-500.0,0.00041369,14]
[402012351,1768457459001,-643.3,0.00041369,30]
[402012352,1768457459010,-1001.58,0.00041369,30]
[402012353,1768457459020,-1078.39,0.00041369,30]
[402012354,1768457459029,-1192.85,0.00041369,30]
[402012355,1768457459038,-2018.6,0.00041369,30]
[402012356,1768457459048,-356.76222062,0.00041369,30]
[402012357,1768457459068,-1210.17,0.00041369,30]
[402012358,1768457459078,-500.0,0.00041369,30]
[402012359,1768457459087,-567.34,0.00041369,30]
[402012360,1768457459097,-616.43576784,0.00041369,30]
[402012361,1768457459107,-500.0,0.00041369,30]
[402012362,1768457459116,-500.0,0.00041369,30]
[402012363,1768457459126,-500.0,0.00041369,30]
[402012364,1768457459136,-1114.65,0.00041369,30]
[402012365,1768457459145,-1708.02,0.00041369,30]
[402012366,1768457459155,-500.0,0.00041369,30]
[402012367,1768457459165,-526.33,0.00041369,30]
[402012368,1768457459174,-683.19,0.00041369,30]
[402012369,1768457459184,-1258.86,0.00041369,30]
[402012370,1768457459194,-500.0,0.00041369,30]
[402012371,1768457459204,-500.0,0.00041369,30]
[402012372,1768457459214,-1655.62,0.00041369,30]
[402012373,1768457459223,-2227.25,0.00041369,30]
[402012374,1768457459233,-500.0,0.00041369,30]
[402012375,1768457459243,-563.06,0.00041369,30]
[402012376,1768457459253,-758.71,0.00041369,30]
[402012377,1768457459263,-562.35,0.00041369,30]
[402012378,1768457459273,-500.0,0.00041369,30]
[402012379,1768457459282,-670.26,0.00041369,30]
[402012380,1768457459292,-500.0,0.00041369,30]
[402012381,1768457459301,-500.0,0.00041369,30]
[402012382,1768457459311,-500.0,0.00041369,30]
[402012383,1768457459320,-606.78,0.00041369,30]
[402012384,1768457459330,-204.34540566,0.00041369,30]
[402012385,1768457459339,-659.28,0.00041369,30]
[402012386,1768457459348,-556.98,0.00041369,30]
[402012387,1768457459358,-1056.69,0.00041369,30]